bitfinex/quotes_BTCUSD_20240719
["timestamp","ask_amount","ask_price","bid_price","bid_amount"]
[1721402945305,0.48916828,65394.0,65393.0,0.00018408]
[1721402945522,0.18261666,65394.0,65393.0,0.00018408]
[1721402945884,0.02969766,65394.0,65393.0,0.00018408]
[1721402946084,0.02969766,65395.0,65393.0,0.00018408]
[1721402946306,0.03249166,65394.0,65393.0,0.00018408]
[1721402946572,0.155713,65394.0,65393.0,0.00018408]
[1721402946788,0.03266887,65394.0,65393.0,0.00018408]
[1721402947193,0.305783,65406.0,65393.0,0.00018408]
[1721402947194,0.002794,65399.0,65393.0,0.00018408]
[1721402947400,0.03005249,65398.0,65393.0,0.00018408]
[1721402947603,0.03284649,65397.0,65393.0,0.00018408]
[1721402947809,0.002794,65401.0,65393.0,0.00018408]
[1721402948010,0.03005097,65400.0,65394.0,0.1442]
[1721402948223,0.002794,65399.0,65396.0,0.305]
[1721402948426,0.305765,65410.0,65396.0,0.305]
[1721402948620,0.2198147,65409.0,65396.0,0.305]
[1721402948870,0.0539292,65408.0,65403.0,0.305]
[1721402949100,0.305731,65417.0,65403.0,0.305]
[1721402949101,0.03000608,65407.0,65404.0,0.0642]
[1721402949308,0.03000608,65406.0,65404.0,0.0642]
[1721402949512,0.009026,65411.0,65404.0,0.0642]
[1721402949738,0.05634161,65410.0,65404.0,0.0642]
[1721402949940,0.0296265,65409.0,65404.0,0.0642]
[1721402950142,0.002794,65408.0,65404.0,0.0642]
[1721402950344,0.0296265,65407.0,65404.0,0.0642]
[1721402950758,0.0296265,65406.0,65404.0,0.0642]
[1721402950959,0.0296265,65405.0,65404.0,0.0642]
[1721402951365,0.002794,65410.0,65404.0,0.0642]
[1721402951366,0.0294867,65409.0,65404.0,0.0642]
[1721402951578,0.06482059,65408.0,65404.0,0.0642]
[1721402951822,0.5,65405.0,65404.0,0.0642]
[1721402951939,0.5294867,65405.0,65404.0,0.0642]
[1721402952139,0.5294867,65405.0,65397.0,0.0618]
[1721402952364,0.0322807,65404.0,65397.0,0.0618]
[1721402952563,0.0294867,65403.0,65397.0,0.0618]
[1721402952775,0.5,65398.0,65393.0,0.00018408]
[1721402952979,0.458757,65394.0,65393.0,0.00018408]
[1721402953181,0.152947,65382.0,65381.0,0.002]
[1721402953382,0.67523952,65382.0,65381.0,0.002]
[1721402954117,0.41460023,65382.0,65381.0,0.002]
[1721402954344,0.02392404,65382.0,65381.0,0.002]
[1721402954536,0.02815475,65382.0,65381.0,0.002]
[1721402954859,0.09053352,65392.0,65381.0,0.0638]
[1721402954860,0.5,65392.0,65381.0,0.0638]
[1721402955119,0.04526676,65390.0,65382.0,0.07717479]
[1721402955296,0.03093835,65389.0,65385.0,0.305]
[1721402955505,0.06790014,65394.0,65385.0,0.305]
[1721402955506,0.02814435,65388.0,65385.0,0.305]
[1721402955861,0.04526676,65396.0,65386.0,0.0762]
[1721402956009,0.02981499,65395.0,65386.0,0.0762]
[1721402956410,0.02981499,65394.0,65389.0,0.07717479]
[1721402956615,0.09053352,65402.0,65389.0,0.07717479]
[1721402956616,0.02981499,65393.0,65392.0,0.305]
[1721402956821,0.1131669,65405.0,65392.0,0.305]
[1721402956822,0.04526676,65406.0,65395.0,0.0762]
[1721402956997,0.02966959,65405.0,65396.0,0.07717479]
[1721402957200,0.02966959,65404.0,65400.0,0.305]
[1721402957447,0.02966959,65403.0,65400.0,0.305]
[1721402957831,0.02966959,65402.0,65396.0,0.07717479]
[1721402958029,0.00922059,65409.0,65396.0,0.07717479]
[1721402958030,0.00922059,65409.0,65401.0,0.0648]
[1721402958234,0.02931583,65408.0,65401.0,0.0648]
[1721402958646,0.5,65411.0,65401.0,0.0648]
[1721402958647,0.02931583,65407.0,65401.0,0.0648]
[1721402958792,0.5,65411.0,65401.0,0.0648]
[1721402958793,0.02931583,65406.0,65401.0,0.0648]
[1721402958999,0.002794,65410.0,65401.0,0.0648]
[1721402959219,0.02904798,65409.0,65401.0,0.0648]
[1721402959552,0.04526676,65406.0,65401.0,0.0648]
[1721402959752,0.03184198,65405.0,65401.0,0.0648]
[1721402959882,0.02904798,65404.0,65401.0,0.0648]
[1721402960240,0.02904798,65403.0,65401.0,0.0648]
[1721402960444,0.02883851,65402.0,65401.0,0.0648]
[1721402961790,0.02883851,65402.0,65395.0,0.0762]
[1721402962012,0.06796234,65406.0,65395.0,0.0762]
[1721402962013,0.02883851,65401.0,65395.0,0.0762]
[1721402962225,0.02883851,65400.0,65395.0,0.0762]
[1721402962415,0.04530823,65402.0,65395.0,0.0762]
[1721402962416,0.02883851,65399.0,65395.0,0.0762]
[1721402962720,0.002794,65397.0,65394.0,0.0648]
[1721402962920,0.02883851,65396.0,65394.0,0.0648]
[1721402963124,0.03163251,65395.0,65394.0,0.0648]
[1721402963337,0.02883851,65395.0,65394.0,0.0648]
[1721402963538,0.02893297,65395.0,65394.0,0.0648]
[1721402963740,0.002794,65397.0,65394.0,0.0648]
[1721402963891,0.002794,65401.0,65394.0,0.0648]
[1721402964153,0.002794,65399.0,65394.0,0.0648]
[1721402964365,0.07423669,65398.0,65394.0,0.0648]
[1721402964536,0.04809883,65396.0,65394.0,0.0648]
[1721402964698,0.02893186,65395.0,65394.0,0.0648]
[1721402965471,0.02893186,65396.0,65394.0,0.0648]
[1721402965676,0.02893186,65395.0,65394.0,0.0648]
[1721402966422,0.09957737,65401.0,65394.0,0.0648]
[1721402966423,0.04531766,65398.0,65394.0,0.0648]
[1721402966558,0.04531766,65398.0,65395.0,0.003058]
[1721402966559,0.02893851,65397.0,65395.0,0.003058]
[1721402966758,0.02893851,65397.0,65394.0,0.0648]
[1721402966942,0.02893851,65396.0,65394.0,0.0648]
[1721402967142,0.02893632,65395.0,65394.0,0.0648]
[1721402967369,0.04531958,65396.0,65394.0,0.0648]
[1721402967593,0.03173032,65395.0,65393.0,0.305]
[1721402967855,0.02893632,65394.0,65390.0,0.0785]
[1721402968047,0.03173032,65393.0,65390.0,0.0785]
[1721402968253,0.02893632,65392.0,65390.0,0.0785]
[1721402968549,0.02893632,65392.0,65391.0,0.07717479]
[1721402968737,0.5,65390.0,65383.0,0.084024]
[1721402968976,0.5,65390.0,65383.0,0.000924]
[1721402968977,0.09063237,65385.0,65383.0,0.000924]
[1721402969202,0.52022997,65389.0,65383.0,0.000924]
[1721402969203,0.28386872,65384.0,65383.0,0.000924]
[1721402969403,0.18953934,65384.0,65383.0,0.000924]
[1721402969573,0.21438389,65384.0,65383.0,0.000924]
[1721402970016,0.33045606,65384.0,65383.0,0.000924]
[1721402970125,0.21438389,65384.0,65383.0,0.000924]
[1721402970327,0.30498979,65384.0,65383.0,0.000924]
[1721402970993,0.09558764,65384.0,65383.0,0.000924]
[1721402971201,0.02763855,65384.0,65383.0,0.000924]
[1721402971400,0.07293843,65384.0,65383.0,0.000924]
[1721402971649,0.09558764,65384.0,65383.0,0.000924]
[1721402971864,0.07295157,65384.0,65383.0,0.000924]
[1721402972443,0.0292227,65384.0,65383.0,0.000924]
[1721402972685,0.0292227,65387.0,65383.0,0.000924]
[1721402972891,0.0292227,65386.0,65383.0,0.000924]
[1721402973120,0.04531551,65389.0,65385.0,0.305]
[1721402973267,0.02954464,65388.0,65385.0,0.305]
[1721402973472,0.04531551,65390.0,65385.0,0.305]
[1721402973473,0.02954464,65387.0,65385.0,0.305]
[1721402973671,0.02954464,65386.0,65385.0,0.305]
[1721402974307,0.04531551,65391.0,65385.0,0.305]
[1721402974504,0.0292754,65390.0,65385.0,0.305]
[1721402974659,0.07459091,65390.0,65385.0,0.305]
[1721402974864,0.0292754,65389.0,65385.0,0.305]
[1721402975071,0.0292754,65389.0,65388.0,0.07717479]
[1721402975276,0.04531551,65396.0,65388.0,0.07717479]
[1721402975493,0.02931329,65395.0,65392.0,0.305]
[1721402975692,0.04531834,65397.0,65386.0,0.1413]
[1721402975693,0.02931329,65394.0,65386.0,0.1413]
[1721402975898,0.02931329,65393.0,65386.0,0.1413]
[1721402976111,0.02931329,65392.0,65386.0,0.1413]
[1721402976338,0.04531834,65395.0,65386.0,0.1413]
[1721402976543,0.02868701,65394.0,65386.0,0.1413]
[1721402976993,0.02868701,65394.0,65389.0,0.07717479]
[1721402977202,0.02868701,65394.0,65386.0,0.1413]
[1721402977203,0.15438174,65393.0,65386.0,0.1413]
[1721402977412,0.04531834,65391.0,65386.0,0.1413]
[1721402977796,0.03148101,65390.0,65386.0,0.1413]
[1721402978008,0.04531834,65391.0,65386.0,0.1413]
[1721402978009,0.02868701,65389.0,65388.0,0.07717479]
[1721402978210,0.04531834,65394.0,65388.0,0.07717479]
[1721402978479,0.00899368,65403.0,65388.0,0.07717479]
[1721402978480,0.50899368,65403.0,65388.0,0.07717479]
[1721402978678,0.04532668,65395.0,65388.0,0.07717479]
[1721402978915,0.02804815,65394.0,65388.0,0.07717479]
[1721402979122,0.02804815,65393.0,65388.0,0.07717479]
[1721402979347,0.04532668,65395.0,65388.0,0.07717479]
[1721402979348,0.02804815,65392.0,65388.0,0.07717479]
[1721402979554,0.04532668,65394.0,65388.0,0.07717479]
[1721402979763,0.02744499,65393.0,65388.0,0.07717479]
[1721402979967,0.04532668,65397.0,65393.0,0.305]
[1721402980208,0.04532668,65399.0,65395.0,0.13727479]
[1721402980477,0.02744105,65398.0,65396.0,0.2447]
[1721402980730,0.02744105,65397.0,65396.0,0.2447]
[1721402980967,0.02744105,65399.0,65396.0,0.2447]
[1721402981213,0.07276773,65399.0,65396.0,0.2447]
[1721402981442,0.02744105,65398.0,65396.0,0.2447]
[1721402981714,0.02783706,65397.0,65396.0,0.2447]
[1721402981972,0.00910959,65405.0,65396.0,0.628529]
[1721402981973,0.0453418,65401.0,65396.0,0.628529]
[1721402982250,0.00910959,65405.0,65400.0,0.32187479]
[1721402982535,0.04534545,65407.0,65400.0,0.32187479]
[1721402982825,0.05441851,65411.0,65406.0,0.2447]
[1721402983111,0.00907306,65411.0,65406.0,0.2447]
[1721402983586,0.04534545,65415.0,65406.0,0.2447]
[1721402983820,0.02792305,65414.0,65413.0,0.2447]
[1721402984340,0.02792305,65414.0,65411.0,0.3057]
[1721402984832,0.02805519,65413.0,65411.0,0.3057]
[1721402985073,0.04531984,65416.0,65411.0,0.3057]
[1721402985325,0.00924735,65417.0,65413.0,0.07717479]
[1721402985326,0.02805475,65415.0,65413.0,0.07717479]
[1721402985571,0.00924735,65417.0,65414.0,0.152871]
[1721402985813,0.04615984,65426.0,65419.0,0.152859]
[1721402986065,0.00896951,65424.0,65422.0,0.3057]
[1721402986310,0.00084,65426.0,65423.0,0.1414]
[1721402986574,0.01004397,65426.0,65423.0,0.14445657]
[1721402986828,0.00084,65426.0,65423.0,0.14445657]
[1721402987068,0.00084,65426.0,65423.0,0.1414]
[1721402987330,0.00084,65426.0,65423.0,0.0627]
[1721402987843,0.002794,65425.0,65422.0,0.3057]
[1721402988096,0.00084,65426.0,65422.0,0.3057]
[1721402988594,0.00084,65426.0,65425.0,0.23002079]
[1721402988832,0.00084,65426.0,65425.0,0.152846]
[1721402990063,0.00084,65426.0,65423.0,0.064]
[1721402990306,0.002794,65425.0,65417.0,0.1427]
[1721402991547,0.002794,65425.0,65422.0,0.3057]
[1721402991780,0.00084,65426.0,65422.0,0.3057]
[1721402992497,0.155642,65425.0,65415.0,0.3057]
[1721402993007,0.02660407,65424.0,65415.0,0.3057]
[1721402993242,0.002794,65423.0,65415.0,0.3057]
[1721402993504,0.002794,65425.0,65422.0,0.3057]
[1721402993757,0.00084,65426.0,65422.0,0.3057]
[1721402994027,0.002794,65425.0,65422.0,0.3057]
[1721402994546,0.155646,65423.0,65415.0,0.3057]
[1721402994793,0.152858,65420.0,65415.0,0.3057]
[1721402995085,0.30653,65426.0,65408.0,0.3057]
[1721402995086,0.0796,65415.0,65408.0,0.3057]
[1721402995333,0.0796,65415.0,65393.0,0.050924]
[1721402995334,0.002794,65411.0,65401.0,0.3057]
[1721402995579,0.002794,65413.0,65401.0,0.3057]
[1721402996038,0.002794,65413.0,65402.0,0.07717479]
[1721402996267,0.002794,65415.0,65409.0,0.3057]
[1721402996505,0.15717574,65420.0,65409.0,0.3057]
[1721402996752,0.0266754,65419.0,65409.0,0.3057]
[1721402997034,0.15438174,65418.0,65409.0,0.3057]
[1721402997273,0.002794,65422.0,65417.0,0.3057]
[1721402997549,0.002794,65425.0,65418.0,0.00305712]
[1721402997797,0.16674101,65426.0,65417.0,0.3057]
[1721402998061,0.00084,65426.0,65417.0,0.3057]
[1721402999019,0.5,65425.0,65417.0,0.3057]
[1721402999517,0.15438174,65424.0,65410.0,0.3057]
[1721402999723,0.15438174,65424.0,65417.0,0.3057]
[1721402999724,0.02952015,65423.0,65417.0,0.3057]
[1721402999925,0.15438174,65424.0,65417.0,0.3057]
[1721403000131,0.002794,65425.0,65417.0,0.3057]
[1721403000549,0.00084,65426.0,65418.0,0.07717479]
[1721403000758,0.00084,65426.0,65425.0,0.07717479]
[1721403000963,0.00084,65426.0,65424.0,0.3057]
[1721403001174,0.15717574,65425.0,65417.0,0.3057]
[1721403001613,0.15438174,65425.0,65419.0,0.07717479]
[1721403001839,0.00084,65426.0,65420.0,0.00305702]
[1721403002128,0.00084,65426.0,65424.0,0.3057]
[1721403003007,0.00084,65426.0,65410.0,0.0627]
[1721403003008,0.29038174,65425.0,65410.0,0.0627]
[1721403003227,0.002794,65420.0,65403.0,0.0618]
[1721403003469,0.002794,65418.0,65403.0,0.0618]
[1721403003685,0.002794,65418.0,65410.0,0.07717479]
[1721403003686,0.02643116,65417.0,65410.0,0.07717479]
[1721403003892,0.002794,65416.0,65410.0,0.07717479]
[1721403004105,0.002794,65424.0,65411.0,0.00305728]
[1721403004318,0.002794,65425.0,65423.0,0.3057]
[1721403004525,0.02614568,65424.0,65423.0,0.2445]
[1721403004726,0.18052842,65424.0,65417.0,0.2445]
[1721403004954,0.02614513,65423.0,65418.0,0.07717479]
[1721403005171,0.00084,65426.0,65418.0,0.07717479]
[1721403005384,0.07102973,65425.0,65423.0,0.2445]
[1721403005593,0.02557777,65424.0,65423.0,0.2445]
[1721403005802,0.07102973,65425.0,65423.0,0.2445]
[1721403006019,0.07102973,65425.0,65424.0,0.07717479]
[1721403006235,0.07102973,65425.0,65424.0,0.08023146]
[1721403006445,0.07102973,65425.0,65424.0,0.29062379]
[1721403006847,0.07102973,65425.0,65424.0,0.67302179]
[1721403007258,0.07102973,65425.0,65424.0,1.09841027]
[1721403007474,0.07102973,65425.0,65424.0,0.97871979]
[1721403008305,0.07102973,65425.0,65424.0,1.43879953]
[1721403008948,0.061213,65442.0,65431.0,0.152832]
[1721403009155,0.061213,65442.0,65431.0,0.702997]
[1721403009156,1.01144478,65432.0,65431.0,0.702997]
[1721403009366,1.01144478,65432.0,65431.0,1.0902917]
[1721403009575,1.01144478,65432.0,65431.0,0.397332]
[1721403009787,1.01144478,65432.0,65431.0,0.702997]
[1721403010207,1.01144478,65432.0,65431.0,0.397332]
[1721403010411,1.01144478,65432.0,65431.0,1.08583679]
[1721403010625,1.01144478,65432.0,65431.0,1.60568028]
[1721403010830,0.061209,65447.0,65432.0,0.1416]
[1721403011066,0.061209,65447.0,65443.0,0.2445]
[1721403011067,0.15438174,65446.0,65443.0,0.2445]
[1721403011278,0.15438174,65446.0,65437.0,0.2445]
[1721403011691,0.01145846,65447.0,65443.0,0.2445]
[1721403011890,0.02396168,65450.0,65443.0,0.2445]
[1721403012103,0.03523316,65450.0,65443.0,0.2445]
[1721403012954,0.03523316,65450.0,65449.0,0.2445]
[1721403013411,0.03523316,65450.0,65443.0,0.2445]
[1721403013626,0.03523316,65450.0,65435.0,0.775848]
[1721403013627,0.5825,65439.0,65435.0,0.470203]
[1721403013847,0.152842,65427.0,65418.0,0.470203]
[1721403014064,0.152842,65427.0,65401.0,0.2445]
[1721403014065,0.5,65395.0,65383.0,0.46397271]
[1721403014285,1.014595,65394.0,65383.0,0.000924]
[1721403014495,0.03677091,65394.0,65383.0,0.000924]
[1721403014764,0.5,65388.0,65383.0,0.000924]
[1721403014983,0.295742,65384.0,65383.0,0.000924]
[1721403015211,0.18013745,65384.0,65383.0,0.000924]
[1721403015423,0.15438174,65384.0,65383.0,0.000924]
[1721403015641,0.002794,65391.0,65383.0,0.000924]
[1721403015858,0.15717574,65391.0,65383.0,0.000924]
[1721403016511,0.002794,65391.0,65383.0,0.306812]
[1721403016718,0.002794,65395.0,65383.0,0.000924]
[1721403016919,0.01156,65396.0,65383.0,0.000924]
[1721403016920,0.002794,65393.0,65383.0,0.000924]
[1721403017131,0.15438174,65394.0,65383.0,0.000924]
[1721403017132,0.002794,65391.0,65383.0,0.000924]
[1721403017369,0.15717574,65391.0,65383.0,0.153868]
[1721403017587,0.15717574,65391.0,65383.0,0.000924]
[1721403017799,0.01113713,65403.0,65383.0,0.000924]
[1721403018012,0.002794,65401.0,65383.0,0.000924]
[1721403018221,0.002794,65399.0,65383.0,0.153868]
[1721403018431,0.15438174,65398.0,65383.0,0.0535416]
[1721403018648,0.002794,65397.0,65383.0,0.000924]
[1721403018872,0.002794,65395.0,65383.0,0.000924]
[1721403019070,0.002794,65393.0,65383.0,0.000924]
[1721403019277,0.002794,65391.0,65383.0,0.000924]
[1721403019485,0.002794,65389.0,65383.0,0.000924]
[1721403019687,0.002794,65387.0,65383.0,0.000924]
[1721403019899,0.15438174,65387.0,65383.0,0.000924]
[1721403020756,0.62504871,65407.0,65386.0,0.07717479]
[1721403020757,0.46584271,65404.0,65386.0,0.07717479]
[1721403020972,0.002794,65398.0,65394.0,0.152919]
[1721403021179,0.002794,65402.0,65391.0,0.305848]
[1721403021385,0.01118044,65405.0,65392.0,0.305846]
[1721403021386,0.002794,65400.0,65392.0,0.305846]
[1721403021587,0.01118044,65405.0,65393.0,0.30584]
[1721403021588,0.002794,65404.0,65393.0,0.30584]
[1721403021798,0.002794,65404.0,65396.0,0.305825]
[1721403022000,0.002794,65410.0,65396.0,0.305825]
[1721403022214,0.15438174,65409.0,65396.0,0.305825]
[1721403022422,0.002794,65408.0,65393.0,0.152921]
[1721403022622,0.002794,65406.0,65388.0,0.470203]
[1721403022825,0.002794,65404.0,65393.0,0.152921]
[1721403023030,0.002794,65402.0,65389.0,0.152928]
[1721403023233,0.15438174,65401.0,65389.0,0.152928]
[1721403023444,0.15438174,65401.0,65388.0,0.470203]
[1721403023651,0.002794,65400.0,65388.0,0.470203]
[1721403023856,0.15438174,65399.0,65388.0,0.470203]
[1721403024070,0.002794,65395.0,65388.0,0.470203]
[1721403024284,0.002794,65393.0,65383.0,0.000924]
[1721403024494,0.002794,65394.0,65383.0,0.153868]
[1721403024703,0.002794,65394.0,65384.0,0.152942]
[1721403024909,0.002794,65392.0,65383.0,0.000924]
[1721403025120,0.002794,65393.0,65383.0,0.000924]
[1721403025329,0.15438174,65392.0,65383.0,0.000924]
[1721403025546,0.002794,65391.0,65383.0,0.000924]
[1721403025756,0.002794,65389.0,65383.0,0.000924]
[1721403025975,0.15438174,65388.0,65383.0,0.000924]
[1721403026227,0.002794,65387.0,65383.0,0.000924]
[1721403026442,0.15438174,65386.0,65383.0,0.000924]
[1721403026656,0.15438174,65384.0,65383.0,0.000924]
[1721403026865,0.30732374,65384.0,65383.0,0.000924]
[1721403027771,0.15438174,65384.0,65383.0,0.000924]
[1721403027987,0.91909374,65384.0,65383.0,0.000924]
[1721403028424,0.91909374,65384.0,65371.0,0.002]
[1721403028425,0.65297,65372.0,65371.0,0.002]
[1721403028639,0.65438174,65372.0,65371.0,0.002]
[1721403031823,0.002794,65383.0,65375.0,0.152962]
[1721403032026,0.728,65396.0,65379.0,0.07717479]
[1721403032027,0.15438174,65382.0,65379.0,0.07717479]
[1721403032457,0.01142488,65383.0,65379.0,0.07717479]
[1721403032660,0.01142488,65383.0,65380.0,0.01007169]
[1721403032869,0.002794,65395.0,65387.0,0.152933]
[1721403033077,0.01141047,65391.0,65383.0,0.305889]
[1721403033314,0.15438174,65394.0,65384.0,0.152941]
[1721403033512,0.15438174,65394.0,65384.0,0.01003456]
[1721403033744,0.002794,65393.0,65388.0,0.07717479]
[1721403033980,0.15438174,65392.0,65388.0,0.07717479]
[1721403034394,0.5,65391.0,65382.0,0.305892]
[1721403034600,0.5,65391.0,65379.0,0.07717479]
[1721403034601,0.5,65391.0,65381.0,0.152948]
[1721403034809,0.5,65391.0,65383.0,0.16298784]
[1721403035038,0.15438174,65390.0,65382.0,0.01005313]
[1721403035262,0.01137167,65396.0,65382.0,0.01005313]
[1721403035263,0.01137167,65396.0,65386.0,0.07717479]
[1721403035500,0.00084,65398.0,65397.0,0.152912]
[1721403035719,0.00084,65398.0,65397.0,1.21166]
[1721403035930,0.00084,65398.0,65397.0,1.27219081]
[1721403036145,0.00084,65398.0,65397.0,1.52801481]
[1721403036359,0.00084,65398.0,65397.0,1.22219081]
[1721403036567,0.00084,65398.0,65397.0,0.61036681]
[1721403037397,0.00084,65398.0,65397.0,0.15163081]
[1721403037615,0.00084,65398.0,65397.0,0.61036681]
[1721403038647,0.00084,65398.0,65397.0,0.91619081]
[1721403038863,0.00084,65398.0,65397.0,1.57801481]
[1721403039082,0.00084,65398.0,65397.0,1.52801481]
[1721403039301,0.00084,65398.0,65397.0,2.03822055]
[1721403039518,0.00084,65398.0,65397.0,2.08822055]
[1721403040218,0.002794,65424.0,65420.0,0.152857]
[1721403040454,0.0359145,65423.0,65422.0,0.45856]
[1721403040663,0.0359145,65423.0,65422.0,0.845467]
[1721403040664,0.02551672,65423.0,65422.0,0.845467]
[1721403040871,0.04502777,65438.0,65430.0,0.305666]
[1721403041082,0.15438174,65437.0,65430.0,0.305666]
[1721403041327,0.15438174,65437.0,65431.0,0.00750408]
[1721403041328,0.01039473,65436.0,65431.0,0.00750408]
[1721403041535,0.01039473,65435.0,65432.0,0.0074979]
[1721403041743,0.01039473,65435.0,65434.0,0.764127]
[1721403041949,0.03679791,65435.0,65434.0,0.46594965]
[1721403042165,0.03679791,65435.0,65434.0,0.23270863]
[1721403042166,0.03679788,65435.0,65434.0,0.23270863]
[1721403042386,0.03679788,65435.0,65434.0,0.46594965]
[1721403042803,0.03679788,65435.0,65434.0,0.77160065]
[1721403043238,0.01048856,65435.0,65434.0,0.77160065]
[1721403043670,0.01048856,65435.0,65434.0,0.82160065]
[1721403043893,0.01048856,65435.0,65434.0,1.12725165]
[1721403044106,0.00836,65449.0,65448.0,0.152793]
[1721403044321,0.00836,65449.0,65448.0,0.827579]
[1721403044322,0.13305165,65449.0,65448.0,0.827579]
[1721403044543,0.13305165,65449.0,65448.0,1.52284111]
[1721403044544,0.20075217,65449.0,65448.0,1.52284111]
[1721403044762,0.13315829,65449.0,65448.0,1.52284111]
[1721403045404,0.13315829,65449.0,65448.0,1.67512522]
[1721403046040,0.13315829,65449.0,65448.0,1.72512522]
[1721403046260,0.13315829,65449.0,65448.0,1.67512522]
[1721403046919,0.13315829,65449.0,65448.0,2.23509296]
[1721403047128,0.03227825,65449.0,65448.0,2.23509296]
[1721403047341,0.10738016,65449.0,65448.0,1.52284111]
[1721403047550,0.13679168,65449.0,65448.0,1.52284111]
[1721403048201,0.13679168,65449.0,65448.0,1.72722285]
[1721403048408,0.13679168,65449.0,65448.0,1.67722285]
[1721403049089,0.13679168,65449.0,65448.0,1.72722285]
[1721403049301,0.07254799,65449.0,65448.0,2.33715842]
[1721403049747,0.04506302,65455.0,65454.0,1.169453]
[1721403049961,0.04506302,65457.0,65456.0,0.202774]
[1721403050196,0.00836,65459.0,65458.0,0.458308]
[1721403050424,0.14084285,65459.0,65458.0,0.152769]
[1721403050636,0.09720505,65459.0,65458.0,0.77154155]
[1721403051124,0.09720505,65459.0,65458.0,1.07708055]
[1721403051338,0.16475694,65459.0,65458.0,1.28143012]
[1721403051545,0.16475694,65459.0,65458.0,1.23143012]
[1721403051766,0.16475694,65459.0,65458.0,1.28143012]
[1721403052211,0.16475694,65459.0,65458.0,1.23143012]
[1721403052479,0.09720505,65459.0,65458.0,1.23143012]
[1721403053005,0.09720505,65459.0,65458.0,0.16046355]
[1721403053006,0.16475694,65459.0,65458.0,0.16046355]
[1721403053248,0.18727604,65459.0,65458.0,0.00769455]
[1721403053509,0.36086783,65459.0,65458.0,0.00769455]
[1721403053747,0.081094,65458.0,65442.0,0.305611]
[1721403053989,0.04502396,65449.0,65448.0,0.152792]
[1721403054227,0.04502396,65450.0,65449.0,0.15279]
[1721403054479,0.002794,65449.0,65447.0,0.152793]
[1721403054720,0.04782371,65449.0,65448.0,0.152793]
[1721403054960,0.12970839,65449.0,65448.0,0.458379]
[1721403055477,0.12970839,65449.0,65446.0,0.305591]
[1721403055478,0.002794,65448.0,65446.0,0.305591]
[1721403055734,0.002794,65448.0,65437.0,0.305635]
[1721403055971,0.002794,65448.0,65433.0,0.0768]
[1721403055972,0.002794,65446.0,65433.0,0.0768]
[1721403056221,0.002794,65446.0,65437.0,0.305633]
[1721403056222,0.28438935,65445.0,65437.0,0.305633]
[1721403056501,0.002794,65446.0,65443.0,0.458413]
[1721403056502,0.13281276,65444.0,65443.0,0.458413]
[1721403056776,0.02391817,65444.0,65443.0,0.458413]
[1721403057248,0.002794,65443.0,65437.0,0.305634]
[1721403057494,0.002794,65443.0,65442.0,0.458421]
[1721403057735,0.03331717,65443.0,65442.0,0.458421]
[1721403057993,0.03331717,65443.0,65442.0,1.069649]
[1721403058474,0.03331717,65443.0,65442.0,1.29966792]
[1721403058961,0.03331717,65443.0,65442.0,0.16314418]
[1721403059201,0.03331717,65443.0,65442.0,0.46875818]
[1721403059520,0.03340897,65443.0,65442.0,0.16314418]
[1721403059748,0.05827979,65443.0,65442.0,0.01033718]
[1721403059993,0.05827979,65443.0,65442.0,0.77437218]
[1721403060283,0.05827979,65443.0,65442.0,0.01033718]
[1721403060803,0.10337945,65443.0,65442.0,1.069649]
[1721403061030,0.05827979,65443.0,65441.0,0.152807]
[1721403061267,0.06764708,65444.0,65442.0,0.01036835]
[1721403061539,0.06764708,65444.0,65442.0,0.16317335]
[1721403061788,0.1165409,65443.0,65442.0,0.458421]
[1721403062078,0.05741448,65443.0,65442.0,1.22403074]
[1721403062342,0.05741448,65443.0,65442.0,1.52448031]
[1721403062583,0.045092,65448.0,65447.0,0.458385]
[1721403062817,0.045092,65448.0,65447.0,1.069975]
[1721403062818,0.06900847,65448.0,65447.0,1.069975]
[1721403063058,0.02391647,65448.0,65447.0,1.52991457]
[1721403064266,0.08103058,65448.0,65447.0,2.18988631]
[1721403064510,0.02391647,65448.0,65447.0,2.18988631]
[1721403064734,0.02391647,65448.0,65447.0,2.13988631]
[1721403064953,0.08099708,65448.0,65447.0,2.18988631]
[1721403065376,0.08099708,65448.0,65447.0,2.08988631]
[1721403065654,0.08099708,65448.0,65447.0,1.01832457]
[1721403066089,0.08099708,65448.0,65447.0,1.32391457]
[1721403066305,0.08099708,65448.0,65447.0,1.57829631]
[1721403066733,0.08099708,65448.0,65447.0,1.83429631]
[1721403066961,0.02391647,65448.0,65447.0,1.83429631]
[1721403067163,0.02391647,65448.0,65447.0,1.94689631]
[1721403067387,0.02391647,65448.0,65447.0,1.89689631]
[1721403068006,0.02391647,65448.0,65447.0,1.94689631]
[1721403068598,0.02391647,65448.0,65447.0,1.84689631]
[1721403068817,0.02391647,65448.0,65447.0,1.89689631]
[1721403069029,0.02391647,65448.0,65447.0,1.84689631]
[1721403069247,0.02391647,65448.0,65447.0,0.1626]
[1721403069465,0.002794,65447.0,65432.0,0.152829]
[1721403069668,0.15717574,65447.0,65436.0,0.623023]
[1721403070086,0.002794,65445.0,65436.0,0.470203]
[1721403070298,0.002794,65445.0,65437.0,0.152818]
[1721403070299,0.15717574,65445.0,65437.0,0.152818]
[1721403070512,0.002794,65445.0,65438.0,0.30563]
[1721403070747,0.002794,65447.0,65438.0,0.306]
[1721403070929,0.02391647,65448.0,65438.0,0.458815]
[1721403071149,0.002794,65445.0,65436.0,0.470203]
[1721403071365,0.002794,65443.0,65436.0,0.470203]
[1721403072082,0.002794,65441.0,65436.0,0.470203]
[1721403072281,0.03218338,65440.0,65436.0,0.470203]
[1721403072487,0.03218338,65439.0,65436.0,0.470203]
[1721403072710,0.03218338,65438.0,65436.0,0.470203]
[1721403072916,0.03218338,65437.0,65436.0,0.470203]
[1721403073118,0.03218338,65437.0,65436.0,0.928666]
[1721403073329,0.03218338,65437.0,65436.0,0.764105]
[1721403073540,0.03218338,65437.0,65436.0,0.458463]
[1721403074400,0.03218338,65437.0,65436.0,0.152821]
[1721403074616,0.03218338,65437.0,65433.0,0.306]
[1721403074824,0.03218338,65436.0,65434.0,0.152824]
[1721403075028,0.03218338,65435.0,65429.0,0.369673]
[1721403075235,0.03218338,65434.0,65431.0,0.152832]